bitfinex-derivatives/quotes_SOLF0:USTF0_20251115
["timestamp","ask_amount","ask_price","bid_price","bid_amount"]
[1763227944770,11.54665763,143.08,142.97,3.1]
[1763227944973,11.54665763,143.08,142.94,3.1]
[1763227945370,0.0488056,143.02,143.0,0.05313066]
[1763227945671,0.04629188,143.02,143.0,0.05313066]
[1763227948578,0.04629188,143.02,142.94,3.1]
[1763227949874,0.04629188,143.02,142.97,0.04883312]
[1763227950775,0.04629188,143.02,142.97,3.14883312]
[1763227951474,0.04629188,143.02,142.97,0.04883312]
[1763227952977,0.04629188,143.02,142.97,3.14883312]
[1763227953173,5.06636955,143.02,142.97,3.14883312]
[1763227954073,5.06636955,143.02,142.97,0.04883312]
[1763227955577,5.06636955,143.02,142.97,3.16883312]
[1763227956570,0.04629188,143.02,142.97,3.16883312]
[1763227961081,5.07570101,143.02,142.97,3.16883312]
[1763227961885,5.07570101,143.02,142.97,0.04883312]
[1763227962082,5.07570101,143.02,142.97,3.16883312]
[1763227962477,0.04629188,143.02,142.97,3.16883312]
[1763227965092,5.03629671,143.05,142.98,3.12]
[1763227966192,0.0471415,143.03,143.01,3.12]
[1763227966395,0.05180576,143.03,143.01,3.17256278]
[1763227968294,5.03629671,143.02,143.01,3.17256278]
[1763227968489,80.9914291,143.06,143.01,3.17256278]
[1763227968796,74.56,143.06,143.01,3.17256278]
[1763227968998,6.4314291,143.08,143.02,3.12]
[1763227969398,0.05184339,143.06,143.04,0.04852809]
[1763227969601,0.04628076,143.06,143.05,3.12]
[1763227969801,6.4314291,143.09,143.06,3.12]
[1763227970690,6.48428014,143.09,143.06,3.12]
[1763227971298,0.05285104,143.09,143.06,3.12]
[1763227978597,6.4314291,143.15,143.07,3.12]
[1763227978898,9.96926889,143.17,143.07,3.12]
[1763227978899,6.4314291,143.16,143.07,3.12]
[1763227979205,7.7114291,143.17,143.07,3.12]
[1763227979508,1.34,143.11,142.97,3.12]
[1763227979696,1.34,143.06,142.97,3.12]
[1763227979893,0.05207332,143.03,143.0,0.04611018]
[1763227980096,75.86,143.02,143.0,0.04541204]
[1763227980294,0.05107705,143.03,143.0,3.16541204]
[1763227981200,1.39107705,143.03,143.0,0.04541204]
[1763227982603,1.34,143.01,143.0,0.04541204]
[1763227983698,0.05107705,143.03,143.0,3.16541204]
[1763227983901,74.57107705,143.03,143.0,3.16541204]
[1763227985902,1.33,143.1,143.01,3.17]
[1763227986911,0.04826527,143.07,143.05,3.17]
[1763227987102,0.0464719,143.07,143.05,3.21799218]
[1763227988999,0.0464719,143.07,143.05,0.04799218]
[1763227989306,1.3764719,143.07,142.92,3.17]
[1763227989503,1.33,143.07,142.92,3.17]
[1763227990302,0.04488529,143.01,142.99,3.05]
[1763227990503,0.0461753,143.01,142.99,3.10323817]
[1763227991503,7.7614291,143.1,143.0,3.05]
[1763227991700,1.33,143.1,143.0,3.05]
[1763227992508,0.05016155,143.06,143.04,3.0969064]
[1763227992706,0.04920413,143.06,143.04,3.10245857]
[1763227994114,1.42920413,143.06,143.04,0.05245857]
[1763227998811,0.04920413,143.06,143.04,3.10245857]
[1763228004023,74.52,143.13,143.05,3.05]
[1763228004325,80.9514291,143.13,143.06,3.05]
[1763228004923,0.04815755,143.11,143.08,0.05232151]
[1763228005222,0.04815755,143.11,143.08,3.10232151]
[1763228005928,1.46815755,143.11,143.08,0.05232151]
[1763228006124,1.42,143.1,143.08,0.05232151]
[1763228006622,1.46815755,143.11,143.08,0.05232151]
[1763228010331,1.42,143.08,143.02,3.05]
[1763228011429,0.04679214,143.06,143.04,3.10342713]
[1763228011729,0.04679214,143.06,143.04,3.0972088]
[1763228021937,1.46679214,143.06,143.04,0.0472088]
[1763228023938,1.42,143.05,143.04,0.0472088]
[1763228025037,6.47822124,143.06,142.98,3.16]
[1763228025038,1.42,143.04,142.98,3.16]
[1763228025332,1.42,143.03,142.98,3.16]
[1763228025535,1.42,143.02,142.98,3.16]
[1763228026133,0.04927704,143.01,142.99,0.04577526]
[1763228026340,1.46927704,143.01,142.99,0.04577526]
[1763228033849,0.04927704,143.01,142.99,3.20577526]
[1763228034557,1.46927704,143.01,142.99,0.04577526]
[1763228039653,1.42,143.0,142.94,3.16]
[1763228040358,1.42,142.99,142.94,3.16]
[1763228040747,6.52551084,143.0,142.95,0.04994008]
[1763228040748,1.42,142.97,142.95,0.04994008]
[1763228040949,1.47303531,142.97,142.95,0.04499155]
[1763228041951,0.05303531,142.97,142.95,3.20499155]
[1763228043453,7.94551084,143.04,142.96,3.16]
[1763228043658,1.42,143.03,142.96,3.16]
[1763228043959,6.52551084,143.05,142.96,3.16]
[1763228044155,1.43,143.05,142.96,3.16]
[1763228044354,1.43,143.04,142.96,3.16]
[1763228044660,1.47729356,143.02,142.99,3.32716237]
[1763228044953,1.47831661,143.02,142.99,3.32514476]
[1763228046058,1.47831661,143.02,142.99,0.04514476]
[1763228047060,1.47831661,143.02,142.99,3.32514476]
[1763228047961,0.04831661,143.02,142.99,3.32514476]
[1763228052466,6.52551084,143.07,143.0,3.09]
[1763228052766,1.42,143.08,143.0,3.09]
[1763228052962,6.52551084,143.09,143.0,3.09]
[1763228053171,6.52551084,143.1,143.0,3.09]
[1763228053361,0.05165583,143.06,143.04,0.04726287]
[1763228053668,0.04470457,143.06,143.05,3.09]
[1763228055567,6.52551084,143.13,143.06,3.09]
[1763228055762,1.52,143.14,143.06,3.09]
[1763228055966,6.52551084,143.13,143.06,3.09]
[1763228056160,8.04551084,143.14,143.06,3.09]
[1763228056360,1.52,143.14,143.06,3.09]
[1763228056670,0.04560047,143.11,143.1,3.09]
[1763228056860,0.04665308,143.12,143.1,3.09]
[1763228064974,0.04665308,143.12,143.1,4.49]
[1763228065268,0.04665308,143.12,143.11,3.09]
[1763228065472,1.52,143.18,143.11,3.09]
[1763228066475,1.52,143.18,143.14,3.09]
[1763228066673,1.52,143.18,143.15,0.04420308]
[1763228068578,1.52,143.18,143.15,3.13420308]
[1763228069480,2.92,143.18,143.02,3.09]
[1763228069678,1.47,143.17,143.02,3.09]
[1763228069881,1.47,143.14,143.02,3.09]
[1763228070080,1.47,143.12,143.02,3.09]
[1763228070574,36.02,143.16,143.06,0.05141933]
[1763228070778,36.02,143.16,143.07,3.09]
[1763228071775,1.51,143.15,143.1,0.05358707]
[1763228071976,1.51,143.15,143.11,0.05306228]
[1763228072279,1.51,143.15,143.12,0.04675696]
[1763228073579,1.55675696,143.15,143.07,3.09]
[1763228073778,0.04675696,143.15,143.07,3.09]
[1763228074487,0.04675696,143.15,143.1,0.04679649]
[1763228074688,0.04675696,143.15,143.11,3.17]
[1763228078588,1.55675696,143.15,143.11,3.17]
[1763228079381,0.04675696,143.15,143.11,3.17]
[1763228079582,1.55675696,143.15,143.11,3.17]
[1763228079980,1.55675696,143.15,143.1,0.04679649]
[1763228083488,0.04675696,143.15,143.1,3.21679649]
[1763228087697,1.55675696,143.15,143.1,3.21679649]
[1763228090596,0.04675696,143.15,143.1,3.21679649]
[1763228092394,5.13892628,143.15,143.1,3.21679649]
[1763228092597,0.04675696,143.15,143.1,3.21679649]
[1763228092898,5.13892628,143.15,143.1,3.21679649]
[1763228093101,0.04675696,143.15,143.1,3.21679649]
[1763228095402,5.13892628,143.15,143.1,3.21679649]
[1763228095700,0.04675696,143.15,143.1,3.21679649]
[1763228096102,5.13892628,143.15,143.1,3.21679649]
[1763228096303,5.09216932,143.14,143.1,3.21679649]
[1763228097406,5.09216932,143.13,143.1,3.21679649]
[1763228097607,5.09216932,143.14,143.1,3.21679649]
[1763228097906,5.09216932,143.13,143.1,3.21679649]
[1763228098105,5.09216932,143.14,143.1,3.21679649]
[1763228098404,0.04675696,143.15,143.1,3.21679649]
[1763228098708,0.04675696,143.15,143.11,3.17]
[1763228099306,0.04675696,143.15,143.12,3.17]
[1763228099705,0.04675696,143.15,143.14,3.17]
[1763228100100,0.04675696,143.15,143.14,4.57]
[1763228100407,0.04675696,143.15,143.14,3.17]
[1763228102709,3.10675696,143.15,143.13,0.0473485]
[1763228103005,0.04675696,143.15,143.13,3.2173485]
[1763228104009,6.52551084,143.21,143.13,4.6173485]
[1763228104207,9.58551084,143.22,143.14,3.28]
[1763228104608,6.52551084,143.21,143.14,3.28]
[1763228104809,6.52551084,143.2,143.14,3.28]
[1763228105104,3.24,143.19,143.16,0.04831976]
[1763228105511,3.24,143.18,143.11,3.28]
[1763228105810,9.76551084,143.18,143.11,3.28]
[1763228106611,3.28831976,143.16,143.13,0.05317712]
[1763228110209,8.31467802,143.15,143.13,0.05317712]
[1763228110404,5.07467802,143.14,143.13,0.05317712]
[1763228110814,8.31467802,143.14,143.13,0.05317712]
[1763228111113,3.24,143.14,143.13,0.05317712]
[1763228111314,8.31467802,143.14,143.13,0.05317712]
[1763228111508,3.24,143.14,143.13,0.05317712]
[1763228111812,8.31467802,143.14,143.13,0.05317712]
[1763228112015,3.24,143.14,143.13,0.05317712]
[1763228112213,8.31467802,143.14,143.13,0.05317712]
[1763228112515,3.24,143.14,143.13,0.05317712]
[1763228112712,8.31467802,143.14,143.13,0.05317712]
[1763228117317,5.07467802,143.14,143.13,0.05317712]
[1763228117514,5.07467802,143.15,143.13,3.12317712]
[1763228117714,5.07467802,143.14,143.13,3.12317712]
[1763228117918,0.04831976,143.16,143.13,3.12317712]
[1763228117919,5.07467802,143.15,143.13,3.12317712]
[1763228118122,5.07467802,143.14,143.13,3.12317712]
[1763228118415,5.07467802,143.15,143.13,3.12317712]
[1763228118622,5.07467802,143.14,143.13,3.12317712]
[1763228118816,5.07467802,143.15,143.13,3.12317712]
[1763228119016,5.07467802,143.14,143.13,3.12317712]
[1763228119218,5.07467802,143.15,143.13,3.12317712]
[1763228119521,0.04831976,143.16,143.13,3.12317712]
[1763228119718,5.12299778,143.16,143.13,3.12317712]
[1763228120019,0.04831976,143.16,143.13,3.12317712]
[1763228122925,3.23831976,143.16,143.13,3.12317712]
[1763228123821,0.04831976,143.16,143.13,3.12317712]
[1763228129618,0.04831976,143.16,143.14,3.07]
[1763228131123,6.52551084,143.22,143.14,3.07]
[1763228131525,9.71551084,143.22,143.14,3.07]
[1763228132221,3.19,143.22,143.17,3.1166124]
[1763228133333,6.52551084,143.24,143.17,3.1166124]
[1763228133626,3.19,143.25,143.18,3.07]
[1763228133627,9.71551084,143.25,143.18,3.07]
[1763228133824,3.19,143.24,143.2,3.11559963]
[1763228136129,3.17,143.27,143.2,3.11559963]
[1763228136329,3.17,143.27,143.2,0.04559963]
[1763228136534,6.52551084,143.28,143.2,0.04559963]
[1763228136535,9.69551084,143.24,143.2,0.04559963]
[1763228136731,9.69551084,143.23,143.2,0.04559963]
[1763228136931,3.17,143.22,143.2,0.04559963]
[1763228142730,3.17,143.22,143.13,3.3]
[1763228142935,3.17,143.22,143.14,3.3]
[1763228143742,0.04559963,143.19,143.17,0.04689458]
[1763228144042,0.04559963,143.19,143.17,3.34689458]
[1763228144337,3.21559963,143.19,143.17,0.04689458]
[1763228145242,3.21559963,143.19,143.11,3.3]
[1763228146139,3.21559963,143.19,143.14,0.04983213]
[1763228146445,3.21559963,143.19,143.14,3.34983213]
[1763228147344,0.04559963,143.19,143.14,3.34983213]
[1763228150845,0.04559963,143.19,143.15,3.3]
[1763228152239,3.21559963,143.19,143.15,3.3]
[1763228161951,3.21559963,143.19,143.14,0.04983213]
[1763228162150,3.21559963,143.19,143.14,3.34983213]
[1763228167052,0.04559963,143.19,143.14,3.34983213]
[1763228167253,3.30559963,143.19,143.14,3.34983213]
[1763228170857,0.04559963,143.19,143.14,3.34983213]
[1763228171249,6.52551084,143.24,143.14,3.34983213]
[1763228171450,9.78551084,143.25,143.16,3.25]
[1763228171862,6.52551084,143.27,143.16,9.70459495]
[1763228172160,9.67551084,143.28,143.19,3.31]
[1763228172362,0.04654814,143.25,143.22,3.36289912]
[1763228172561,0.04689458,143.25,143.22,3.35706438]
[1763228173352,6.52551084,143.29,143.22,3.35706438]
[1763228173556,9.67551084,143.3,143.22,3.31]
[1763228173953,3.15,143.3,143.22,3.31]
[1763228174356,3.15,143.3,143.2,6.45459495]
[1763228174357,3.15,143.3,143.26,3.31]
[1763228176662,6.52551084,143.34,143.26,3.31]
[1763228176663,3.15,143.33,143.26,3.31]
[1763228176870,9.67551084,143.36,143.28,3.36375028]
[1763228177066,3.15,143.35,143.31,3.36174785]
[1763228177264,3.15,143.35,143.32,0.04806788]
[1763228177565,6.52551084,143.39,143.32,3.35416236]
[1763228177763,3.15,143.42,143.32,3.35416236]
[1763228177964,3.15,143.41,143.36,0.05253521]
[1763228178167,9.67551084,143.41,143.37,0.05258802]
[1763228178363,3.15,143.4,143.38,0.05176893]
[1763228178564,3.15,143.4,143.38,0.05034224]
[1763228179665,3.15,143.38,143.3,3.31]
[1763228180561,0.05034224,143.35,143.33,0.04784823]
[1763228180760,0.05034224,143.35,143.33,3.35784823]
[1763228181264,0.05034224,143.35,143.33,0.04784823]
[1763228181668,0.05034224,143.35,143.33,3.35784823]
[1763228182471,3.15,143.42,143.33,3.35784823]
[1763228182775,3.15,143.42,143.33,3.31]
[1763228183369,3.15,143.42,143.36,3.35918003]
[1763228183567,3.15,143.42,143.38,0.05169966]
[1763228184373,3.15,143.42,143.38,3.36169966]
[1763228184575,3.15,143.45,143.38,3.36169966]
[1763228184771,3.15,143.45,143.4,3.35773623]
[1763228184975,3.15,143.45,143.41,0.04587571]
[1763228189976,3.15,143.45,143.27,31.46]
[1763228189977,3.15,143.45,143.27,10.46]
[1763228190182,3.15,143.44,143.27,3.31]
[1763228190379,3.15,143.42,143.27,3.31]
[1763228191183,3.15,143.35,143.33,0.04607183]
[1763228191387,3.15,143.35,143.29,3.31]
[1763228191582,3.19587571,143.33,143.31,0.04813225]
[1763228191781,3.19587571,143.33,143.31,0.04468452]
[1763228194484,3.19587571,143.33,143.31,0.00468452]
[1763228194689,4.47,143.32,143.31,0.00468452]
[1763228199393,3.07,143.31,143.2,3.09]
[1763228200492,0.0508657,143.27,143.24,3.13859826]
[1763228201794,3.1208657,143.27,143.24,0.04859826]
[1763228202000,3.1208657,143.27,143.18,3.09]
[1763228202191,3.07,143.27,143.18,3.09]
[1763228203090,0.04629862,143.24,143.21,3.14216657]
[1763228207796,6.996,143.34,143.21,3.14216657]
[1763228207797,3.07,143.3,143.21,3.14216657]
[1763228207997,3.07,143.3,143.21,3.09]
[1763228209001,0.05369888,143.27,143.24,3.14085789]
[1763228209197,0.04675865,143.27,143.24,3.13670853]
[1763228212199,0.04675865,143.27,143.24,4.53670853]
[1763228212400,0.04675865,143.27,143.25,3.09]
[1763228212804,0.04675865,143.27,143.25,4.49]
[1763228212999,0.04675865,143.27,143.26,3.09]
[1763228214609,0.04675865,143.27,143.26,4.49]
[1763228214907,0.04675865,143.27,143.26,3.09]
[1763228215608,0.04675865,143.27,143.26,4.49]
[1763228215809,0.04675865,143.27,143.25,3.09]
[1763228217511,3.07,143.34,143.25,3.09]
[1763228217807,3.07,143.34,143.26,3.09]
[1763228218003,3.07,143.34,143.17,6.45459495]
[1763228218209,9.59551084,143.31,143.16,3.09]
[1763228218404,3.07,143.3,143.16,3.09]
[1763228218904,3.07,143.23,143.22,0.04941086]
[1763228219501,0.04610122,143.24,143.22,0.04941086]
[1763228219702,0.04610122,143.24,143.22,3.13941086]
[1763228220711,3.11610122,143.24,143.22,0.04941086]
[1763228221507,3.07,143.28,143.22,3.13941086]
[1763228221809,3.07,143.28,143.19,3.09]
[1763228222610,3.07,143.28,143.22,0.05059822]
[1763228222809,3.07,143.28,143.24,0.04485886]
[1763228223009,3.07,143.28,143.25,0.05244294]
[1763228223207,3.07,143.28,143.25,0.04636708]
[1763228223513,3.07,143.26,143.11,3.09]
[1763228224309,0.04636708,143.2,143.18,3.34]
[1763228224511,3.04,143.24,143.18,3.34]
[1763228224710,0.04636708,143.2,143.18,3.38929734]
[1763228227814,3.08636708,143.2,143.18,0.04929734]
[1763228229312,3.08636708,143.2,143.18,3.38929734]
[1763228229313,0.04636708,143.2,143.18,3.38929734]
[1763228229517,3.04,143.27,143.18,3.38929734]
[1763228229711,3.04,143.27,143.18,3.34]
[1763228230012,3.04,143.31,143.18,3.34]
[1763228230413,3.04,143.3,143.23,0.04474197]
[1763228230819,3.04,143.3,143.23,3.38474197]
[1763228234923,3.08,143.33,143.23,3.38474197]
[1763228235123,3.08,143.33,143.27,0.04714649]
[1763228235514,3.08,143.33,143.27,3.27714649]
[1763228245022,3.08,143.35,143.27,3.27714649]
[1763228245223,3.08,143.35,143.3,3.2808482]
[1763228245428,3.08,143.35,143.31,0.04977789]
[1763228247434,3.08,143.35,143.31,3.27977789]
[1763228247935,3.08,143.35,143.31,0.04977789]
[1763228248933,3.08,143.34,143.31,0.04977789]
[1763228249737,3.08,143.33,143.31,0.04977789]
[1763228251340,3.08,143.33,143.25,3.23]
[1763228252037,3.08,143.32,143.25,3.23]
[1763228252440,3.08,143.29,143.27,0.04920529]
[1763228252740,3.12670951,143.29,143.27,0.04615738]
[1763228253832,3.12670951,143.29,143.21,3.23]
[1763228254339,3.12670951,143.29,143.17,3.17]
[1763228254541,3.13,143.28,143.17,3.17]
[1763228254938,3.18180569,143.24,143.21,0.05237939]
[1763228260141,0.05180569,143.24,143.21,3.22237939]
[1763228262142,3.13,143.31,143.23,3.17]
[1763228263443,3.17412958,143.28,143.26,0.04671996]
[1763228266048,0.04412958,143.28,143.26,3.21671996]
[1763228278960,3.13,143.36,143.26,3.21671996]
[1763228279158,3.13,143.36,143.26,3.17]
[1763228279861,3.13,143.36,143.3,0.04601544]
[1763228280856,3.13,143.36,143.3,3.21601544]
[1763228281058,3.13,143.38,143.3,3.21601544]
[1763228282861,73.98,143.4,143.3,3.21601544]
[1763228283062,77.11,143.4,143.35,3.17]
[1763228283752,3.13,143.39,143.35,3.17]
[1763228283959,3.13,143.43,143.35,3.17]
[1763228284158,3.13,143.43,143.38,0.04476837]
[1763228284353,3.13,143.43,143.38,3.32476837]
[1763228284861,3.25,143.45,143.38,3.32476837]
[1763228285260,3.25,143.45,143.38,0.04476837]
[1763228285651,3.25,143.45,143.38,3.32476837]
[1763228285852,3.25,143.45,143.38,0.04476837]
[1763228286052,3.25,143.44,143.28,6.44312952]
[1763228286261,3.25,143.39,143.24,3.28]
[1763228286462,3.25,143.36,143.24,3.28]
[1763228286664,77.17,143.36,143.24,3.28]
[1763228286858,3.25,143.35,143.24,3.28]
[1763228287055,0.04476837,143.31,143.29,3.28]
[1763228287261,73.92,143.4,143.29,3.28]
[1763228287262,3.25,143.39,143.29,3.28]
[1763228288257,3.25,143.39,143.33,0.04845069]
[1763228288867,3.25,143.38,143.25,3.28]
[1763228289164,3.25,143.35,143.25,3.28]
[1763228289463,3.25,143.34,143.22,3.28]
[1763228289663,3.25,143.32,143.22,3.28]
[1763228289967,3.29743251,143.28,143.26,0.04629103]
[1763228290163,3.29845069,143.28,143.26,0.04629103]
[1763228290662,0.04845069,143.28,143.26,0.04629103]
[1763228291669,0.04845069,143.28,143.26,3.09629103]
[1763228291866,3.16845069,143.28,143.26,0.04629103]
[1763228292468,0.04845069,143.28,143.26,0.04629103]
[1763228293872,0.04845069,143.28,143.26,3.09629103]
[1763228294962,0.04845069,143.28,143.26,0.04629103]
[1763228297672,0.04845069,143.28,143.26,3.09629103]
[1763228299867,3.16845069,143.28,143.26,0.04629103]
[1763228300070,0.04845069,143.28,143.26,0.04629103]
[1763228300470,3.16845069,143.28,143.26,0.04629103]
[1763228307374,0.04845069,143.28,143.26,0.04629103]
[1763228307778,3.16845069,143.28,143.26,0.04629103]
[1763228308378,0.04845069,143.28,143.26,0.04629103]
[1763228308578,3.16845069,143.28,143.26,0.04629103]
[1763228317283,5.91174217,143.28,143.26,0.04629103]
[1763228317480,3.16845069,143.28,143.26,0.04629103]
[1763228321492,5.91174217,143.28,143.2,2.74329148]
[1763228321693,3.27,143.25,143.16,5.81329148]
[1763228321893,3.27,143.25,143.2,2.74329148]
[1763228322093,3.27,143.25,143.18,5.81329148]
[1763228322293,3.27,143.25,143.19,2.74329148]
[1763228322492,3.27,143.22,143.21,0.04729108]
[1763228322991,3.27,143.22,143.17,1.75713755]
[1763228323793,3.27,143.22,143.17,4.82713755]
[1763228323988,3.27,143.22,143.17,1.75713755]
[1763228324192,3.32338212,143.21,143.18,0.05205297]
[1763228324994,3.32338212,143.21,143.18,3.12205297]
[1763228325498,0.05338212,143.21,143.19,1.75713755]
[1763228326495,0.05338212,143.21,143.19,4.82713755]
[1763228327693,3.32338212,143.21,143.19,1.75713755]
[1763228333300,3.32338212,143.21,143.18,1.80919052]
[1763228334502,3.32338212,143.21,143.18,0.05205297]
[1763228335303,3.27,143.2,143.18,0.05205297]
[1763228336110,5.02713755,143.19,143.18,0.05205297]
[1763228338810,3.27,143.18,143.11,1.75713755]
[1763228339510,3.27,143.18,143.11,4.82713755]
[1763228339709,3.32107286,143.16,143.13,0.05088703]
[1763228340208,0.05107286,143.16,143.13,4.87802458]
[1763228340408,0.05107286,143.16,143.14,3.07]
[1763228342211,3.27,143.22,143.16,3.07]
[1763228342406,3.27,143.22,143.17,4.82713755]
[1763228343109,3.32183884,143.21,143.18,0.04958841]
[1763228344613,0.05183884,143.21,143.19,4.82713755]
[1763228345805,0.05183884,143.21,143.2,3.07]
[1763228347110,3.19,143.27,143.21,3.07]
[1763228347306,3.19,143.27,143.23,4.82713755]
[1763228348113,0.04575872,143.26,143.24,0.05129872]
[1763228348316,0.04575872,143.26,143.24,3.12129872]
[1763228349309,3.23575872,143.26,143.24,0.05129872]
[1763228359221,1.75713755,143.25,143.2,1.75713755]
[1763228359426,3.1,143.24,143.19,1.75713755]
[1763228360026,3.1,143.24,143.21,1.75713755]
[1763228360224,3.14702755,143.24,143.21,3.21283514]
[1763228360417,3.14702755,143.24,143.21,4.96997269]
[1763228360927,0.04702755,143.24,143.22,3.16]
[1763228361522,0.04702755,143.24,143.23,1.75713755]
[1763228365434,3.14702755,143.24,143.21,0.05283514]
[1763228375842,3.14702755,143.24,143.21,3.14283514]
[1763228377143,3.14702755,143.24,143.21,0.05283514]
[1763228379245,0.04702755,143.24,143.22,3.09]
[1763228379738,3.13702755,143.24,143.22,3.09]
[1763228379940,3.13702755,143.24,143.21,0.05283514]
[1763228380337,3.13702755,143.24,143.21,3.14283514]
[1763228383249,3.13702755,143.24,143.21,0.05283514]
[1763228386857,9.59692797,143.23,143.13,6.44312952]
[1763228387050,3.09,143.21,143.13,5.83497735]
[1763228387247,3.09,143.21,143.16,3.09]
[1763228388155,3.09,143.19,143.17,0.04726228]
[1763228401666,3.09,143.18,143.09,2.74497735]
[1763228402065,3.09,143.18,143.09,5.83497735]
[1763228402664,3.09,143.14,143.12,0.0455895]
[1763228403869,3.09,143.14,143.12,3.1355895]
[1763228405468,3.09,143.14,143.12,0.0455895]
[1763228406769,0.04985286,143.15,143.12,3.3155895]
[1763228407570,0.04985286,143.15,143.13,2.74497735]
[1763228407868,3.39985286,143.15,143.12,3.3155895]
[1763228408075,0.04985286,143.15,143.12,3.3155895]
[1763228415275,9.67692797,143.21,143.13,2.74497735]
[1763228415475,3.17,143.2,143.17,3.08]
[1763228416379,3.21745827,143.2,143.17,3.12732362]
[1763228416679,0.04745827,143.2,143.18,2.74497735]
[1763228416878,9.67692797,143.27,143.19,3.08]
[1763228417079,3.17,143.26,143.18,2.74497735]
[1763228417278,3.17,143.26,143.18,5.82497735]
[1763228417880,3.22178382,143.23,143.21,0.05186778]
[1763228418875,0.05178382,143.23,143.21,0.05186778]
[1763228419082,0.05178382,143.23,143.21,3.13186778]
[1763228426281,3.17,143.28,143.23,3.08]
[1763228426682,9.67692797,143.3,143.24,5.82497735]
[1763228426887,3.17,143.3,143.24,5.82497735]
[1763228427380,0.04749725,143.28,143.26,3.13216153]
[1763228430589,0.04749725,143.28,143.27,3.08]
[1763228431279,3.17,143.33,143.27,3.08]
[1763228432289,3.21597801,143.31,143.27,3.08]
[1763228432588,3.21597801,143.31,143.28,3.12664762]
[1763228434988,0.04597801,143.31,143.29,3.15]
[1763228436189,3.36597801,143.31,143.28,5.94162497]
[1763228436388,3.36597801,143.31,143.28,3.19664762]
[1763228439685,3.36597801,143.31,143.28,0.04664762]
[1763228444702,3.36597801,143.31,143.17,62.0]
[1763228444703,3.32,143.3,143.21,3.15]
[1763228445899,3.32,143.26,143.24,0.04450668]
[1763228447109,0.04880029,143.27,143.24,3.19450668]
[1763228447409,0.04880029,143.27,143.26,4.90625328]
[1763228452210,0.04880029,143.27,143.24,0.04450668]
[1763228452404,3.36880029,143.27,143.24,0.04450668]
[1763228459917,3.32,143.26,143.24,0.04450668]
[1763228466523,1.75625328,143.25,143.18,3.23]
[1763228466815,3.18,143.24,143.18,4.98625328]
[1763228467214,3.18,143.24,143.18,3.23]
[1763228467516,3.23037122,143.22,143.2,0.05080785]
[1763228467720,3.23037122,143.22,143.2,0.05204948]
[1763228469323,1.75625328,143.21,143.15,1.75625328]
[1763228469622,3.18,143.2,143.13,1.75625328]
[1763228469920,3.18,143.2,143.13,4.98625328]
[1763228470312,3.23058919,143.18,143.15,0.04822194]
[1763228471624,3.23058919,143.18,143.15,3.31822194]
[1763228471826,3.23058919,143.18,143.15,0.04822194]
[1763228472018,3.23058919,143.18,143.15,3.31822194]
[1763228472319,0.05058919,143.18,143.15,3.31822194]
[1763228472717,3.22058919,143.18,143.15,3.31822194]
[1763228474526,4.97684247,143.18,143.15,3.31822194]
[1763228475026,3.17,143.17,143.15,3.31822194]
[1763228475731,0.05058919,143.18,143.17,3.27]
[1763228476223,3.22058919,143.18,143.15,0.04822194]
[1763228476822,3.22058919,143.18,143.15,3.31822194]
[1763228477821,3.22058919,143.18,143.15,0.04822194]
[1763228478532,4.97684247,143.18,143.15,0.04822194]
[1763228478732,3.22058919,143.18,143.15,0.04822194]
[1763228481127,3.22058919,143.18,143.15,3.31822194]
[1763228481331,0.05058919,143.18,143.15,3.31822194]
[1763228481632,3.22058919,143.18,143.15,0.04822194]
[1763228484130,3.17,143.16,143.15,0.04822194]
[1763228485034,3.17,143.15,143.05,3.27]
[1763228485329,3.17,143.07,143.02,3.27]
[1763228485834,1.75625328,143.06,143.02,3.27]
[1763228486134,0.05080446,143.05,143.03,0.04869208]
[1763228486531,0.05080446,143.05,143.03,3.31869208]
[1763228487220,0.05080446,143.05,143.04,3.27]
[1763228488133,0.05080446,143.05,143.04,5.02625328]
[1763228490042,0.05080446,143.05,143.04,3.27]